bitfinex-derivatives/quotes_BTCF0:USTF0_20251225
["timestamp","ask_amount","ask_price","bid_price","bid_amount"]
[1766663714943,0.05544,87600.0,87577.0,1.32e-06]
[1766663715135,0.0114256,87584.0,87570.0,0.0114273]
[1766663715330,0.0114262,87580.0,87565.0,0.0114279]
[1766663715542,0.01132,87582.0,87565.0,0.0114279]
[1766663715742,0.011426,87581.0,87565.0,0.0114279]
[1766663715940,0.0114265,87577.0,87561.0,0.0611485]
[1766663716135,0.0114265,87577.0,87563.0,0.0114282]
[1766663716347,0.00017132,87578.0,87563.0,0.0114282]
[1766663718048,0.00017132,87578.0,87561.0,0.04972]
[1766663718348,0.0114269,87574.0,87561.0,0.04972]
[1766663718549,0.0114269,87574.0,87560.0,0.00017132]
[1766663720151,0.0114265,87577.0,87560.0,0.01159992]
[1766663721544,0.0114265,87577.0,87562.0,0.0114284]
[1766663722345,0.00017132,87578.0,87562.0,0.0114284]
[1766663724158,0.01059752,87580.0,87562.0,0.0114284]
[1766663724553,0.011426,87581.0,87560.0,0.00017132]
[1766663724745,0.011426,87581.0,87565.0,0.011428]
[1766663726857,0.0114264,87578.0,87563.0,0.0114283]
[1766663729359,0.0114267,87576.0,87560.0,0.01159992]
[1766663730861,0.0114267,87576.0,87562.0,0.0114284]
[1766663737856,0.0114269,87574.0,87560.0,0.00017132]
[1766663738362,0.0114269,87574.0,87561.0,0.0114285]
[1766663738963,0.0114269,87574.0,87560.0,0.00017132]
[1766663739665,0.0114269,87574.0,87560.0,0.01160002]
[1766663741865,0.01149132,87582.0,87560.0,0.01160002]
[1766663742066,0.02549191,87581.0,87560.0,0.01160002]
[1766663742369,0.02549191,87580.0,87560.0,0.01160002]
[1766663742557,0.01149132,87582.0,87560.0,0.01160002]
[1766663742558,0.02549191,87579.0,87560.0,0.00017132]
[1766663742758,0.02549191,87578.0,87560.0,0.00017132]
[1766663742960,0.01149132,87582.0,87560.0,0.00017132]
[1766663743260,0.02549922,87581.0,87560.0,0.00017132]
[1766663743460,0.02549922,87580.0,87560.0,0.00017132]
[1766663743774,0.02549922,87579.0,87560.0,0.00017132]
[1766663743971,0.02549922,87578.0,87560.0,0.00017132]
[1766663744172,0.02549922,87577.0,87561.0,0.0114285]
[1766663744474,0.02549922,87576.0,87561.0,0.0114285]
[1766663744671,0.02549922,87575.0,87561.0,0.0114285]
[1766663744873,0.01149132,87582.0,87561.0,0.0114285]
[1766663745075,0.02552336,87581.0,87561.0,0.0114285]
[1766663745275,0.0114268,87575.0,87561.0,0.0114285]
[1766663745472,0.02552336,87574.0,87561.0,0.0114285]
[1766663745865,0.02552336,87574.0,87560.0,0.00017132]
[1766663745866,0.011427,87573.0,87560.0,0.00017132]
[1766663746974,0.01149132,87582.0,87561.0,0.0114285]
[1766663747164,0.02553746,87581.0,87563.0,0.0114283]
[1766663747365,0.02553746,87580.0,87563.0,0.0114283]
[1766663747564,0.02553746,87579.0,87563.0,0.0114283]
[1766663747773,0.02553746,87578.0,87563.0,0.0114283]
[1766663748074,0.02553746,87577.0,87560.0,0.00017132]
[1766663748278,0.02553746,87576.0,87560.0,0.00017132]
[1766663748475,0.02553746,87575.0,87560.0,0.00017132]
[1766663748671,0.02553746,87574.0,87560.0,0.00017132]
[1766663748874,0.01149132,87582.0,87560.0,0.00017132]
[1766663749074,0.0369644,87581.0,87565.0,0.0114279]
[1766663749273,0.0255384,87580.0,87565.0,0.0114279]
[1766663752975,0.05716,87579.0,87560.0,0.00017132]
[1766663753174,0.02407,87579.0,87560.0,0.06167479]
[1766663753475,0.02448,87581.0,87561.0,0.06150347]
[1766663755780,0.00017132,87582.0,87561.0,0.06150347]
[1766663755979,0.02925132,87582.0,87561.0,0.06150347]
[1766663756179,0.02925132,87582.0,87567.0,0.0114277]
[1766663756382,0.04067722,87582.0,87567.0,0.0114277]
[1766663756783,0.06551722,87582.0,87567.0,0.0114277]
[1766663758681,0.01159722,87582.0,87567.0,0.0114277]
[1766663758882,0.0116,87581.0,87567.0,0.0114277]
[1766663761489,0.03455722,87582.0,87567.0,0.0114277]
[1766663761690,0.05883722,87582.0,87567.0,0.0114277]
[1766663765302,0.0114262,87580.0,87567.0,0.0114277]
[1766663767897,0.05716,87580.0,87569.0,0.0114275]
[1766663768203,0.05716,87580.0,87562.0,0.06150347]
[1766663769402,0.05716,87580.0,87566.0,0.0114279]
[1766663773608,0.0114262,87579.0,87566.0,0.0114279]
[1766663774512,0.05716,87580.0,87566.0,0.0114279]
[1766663775706,0.0685861,87580.0,87566.0,0.0114279]
[1766663777114,0.0685861,87580.0,87563.0,0.0114282]
[1766663777311,0.0114264,87578.0,87563.0,0.0114282]
[1766663778510,0.05716,87580.0,87562.0,0.06150347]
[1766663778710,0.05716,87580.0,87560.0,0.01159992]
[1766663778711,0.05716,87580.0,87560.0,0.00017132]
[1766663780215,0.0114273,87571.0,87560.0,0.00017132]
[1766663785418,0.0114269,87574.0,87560.0,0.00017132]
[1766663785714,0.0114273,87571.0,87560.0,1.32e-06]
[1766663785918,0.0114269,87574.0,87560.0,1.32e-06]
[1766663786306,0.0114271,87572.0,87560.0,1.32e-06]
[1766663787917,0.05716,87580.0,87560.0,1.32e-06]
[1766663787918,0.0114274,87570.0,87560.0,1.32e-06]
[1766663792020,0.011427,87573.0,87560.0,1.32e-06]
[1766663797327,0.0114269,87574.0,87560.0,1.32e-06]
[1766663805331,0.05716,87580.0,87560.0,1.32e-06]
[1766663805532,0.0114263,87578.0,87563.0,0.0114283]
[1766663806125,0.0114266,87576.0,87563.0,0.0114283]
[1766663807524,0.05716,87580.0,87560.0,0.01142992]
[1766663807724,0.02560141,87579.0,87560.0,0.01142992]
[1766663807923,0.05716,87580.0,87560.0,0.01142992]
[1766663808129,0.0114269,87574.0,87560.0,0.01142992]
[1766663809429,0.0114269,87574.0,87560.0,1.32e-06]
[1766663809636,0.0114271,87572.0,87560.0,1.32e-06]
[1766663817045,0.05716,87580.0,87560.0,1.32e-06]
[1766663817243,0.02555673,87579.0,87560.0,1.32e-06]
[1766663817434,0.02555673,87578.0,87560.0,1.32e-06]
[1766663817634,0.02555673,87577.0,87560.0,1.32e-06]
[1766663817842,0.05716,87580.0,87560.0,1.32e-06]
[1766663818043,0.02555693,87579.0,87560.0,1.32e-06]
[1766663818243,0.0114273,87571.0,87560.0,1.32e-06]
[1766663819234,0.0114276,87569.0,87560.0,1.32e-06]
[1766663821647,0.0114278,87567.0,87560.0,1.32e-06]
[1766663821848,0.0114281,87565.0,87560.0,1.32e-06]
[1766663822052,0.0114284,87563.0,87560.0,1.32e-06]
[1766663822236,0.0114284,87563.0,87553.0,0.05716]
[1766663823048,0.0114283,87564.0,87553.0,0.05716]
[1766663825346,0.0114285,87562.0,87553.0,0.05716]
[1766663826859,0.05716,87580.0,87553.0,0.05716]
[1766663827156,0.0114286,87561.0,87553.0,0.05716]
[1766663828050,0.0114262,87579.0,87553.0,0.05716]
[1766663828255,0.02553222,87578.0,87553.0,0.05716]
[1766663828452,0.02553222,87577.0,87553.0,0.05716]
[1766663828660,0.0114287,87561.0,87553.0,0.05716]
[1766663830056,0.0114283,87564.0,87553.0,0.05716]
[1766663830357,0.0114285,87562.0,87553.0,0.05716]
[1766663830757,0.01132,87563.0,87532.0,0.06150347]
[1766663830953,0.00912,87563.0,87535.0,0.0114319]
[1766663831155,0.0114285,87562.0,87547.0,0.0114303]
[1766663831354,0.0114288,87560.0,87534.0,0.0572]
[1766663831655,0.0114284,87563.0,87546.0,0.0114304]
[1766663831854,0.0114286,87561.0,87546.0,0.01160172]
[1766663832261,0.0114286,87561.0,87546.0,0.00017132]
[1766663832654,0.0114286,87561.0,87546.0,0.01160172]
[1766663833863,0.00017132,87563.0,87546.0,0.00017132]
[1766663834657,0.0114287,87560.0,87546.0,0.00017132]
[1766663834965,0.00017132,87563.0,87547.0,0.0114303]
[1766663835161,0.0114284,87562.0,87547.0,0.0114303]
[1766663835357,0.0114288,87560.0,87546.0,0.00017132]
[1766663836264,0.0114285,87562.0,87547.0,0.0114303]
[1766663838068,0.00017132,87563.0,87546.0,0.00017132]
[1766663839167,0.0114287,87560.0,87546.0,0.00017132]
[1766663839666,0.0114287,87560.0,87547.0,0.0114304]
[1766663840266,0.0114287,87560.0,87546.0,0.00017132]
[1766663845771,0.0114285,87562.0,87548.0,0.0114302]
[1766663846073,0.0114287,87560.0,87546.0,0.00017132]
[1766663848673,0.00017132,87563.0,87547.0,0.0114303]
[1766663848861,0.0114285,87562.0,87547.0,0.0114303]
[1766663851466,0.00017132,87563.0,87546.0,0.01160172]
[1766663851664,0.0114284,87562.0,87546.0,0.01160172]
[1766663855675,0.00017132,87563.0,87546.0,0.00017132]
[1766663856172,0.00017132,87563.0,87546.0,0.06167479]
[1766663856380,0.00017132,87563.0,87550.0,0.0114299]
[1766663857076,0.00017132,87563.0,87552.0,0.0114297]
[1766663857279,0.0114277,87568.0,87552.0,0.0114297]
[1766663858079,0.0114266,87573.0,87557.0,0.0114286]
[1766663858282,0.0114266,87573.0,87556.0,0.0114287]
[1766663859486,0.0114266,87573.0,87546.0,0.05737132]
[1766663859487,0.0114266,87573.0,87558.0,0.0114283]
[1766663859784,0.00017132,87574.0,87557.0,0.0114278]
[1766663860982,0.01159712,87574.0,87557.0,0.0114278]
[1766663864885,0.011426,87572.0,87554.0,0.0114283]
[1766663865587,0.011426,87572.0,87556.0,0.011428]
[1766663868682,0.011426,87572.0,87548.0,0.06150347]
[1766663869484,0.011426,87572.0,87546.0,0.05737132]
[1766663869485,0.011426,87572.0,87549.0,0.06150347]
[1766663869794,0.011426,87572.0,87553.0,0.06150347]
[1766663870176,0.011426,87572.0,87556.0,0.011428]
[1766663872082,0.00017132,87574.0,87553.0,0.06150347]
[1766663872389,0.00017132,87574.0,87563.0,0.011427]
[1766663872589,0.00017132,87574.0,87565.0,0.0114269]
[1766663872889,0.00017132,87574.0,87567.0,0.0114266]
[1766663873081,0.0114,87587.0,87567.0,0.0114266]
[1766663873281,0.0114249,87581.0,87567.0,0.0114266]
[1766663873991,0.00017132,87583.0,87565.0,0.00017132]
[1766663875190,0.011425,87580.0,87565.0,0.00017132]
[1766663875595,0.0114252,87578.0,87565.0,0.00017132]
[1766663878792,0.0114255,87576.0,87565.0,0.00017132]
[1766663879789,0.0114256,87575.0,87565.0,0.00017132]
[1766663882797,0.0114253,87578.0,87565.0,0.00017132]
[1766663883099,0.02552777,87577.0,87565.0,0.00017132]
[1766663883300,0.02553066,87576.0,87565.0,0.00017132]
[1766663883492,0.0114253,87578.0,87565.0,0.00017132]
[1766663883689,0.02553066,87577.0,87565.0,0.00017132]
[1766663883889,0.02553066,87576.0,87565.0,0.00017132]
[1766663884090,0.0114253,87578.0,87565.0,0.00017132]
[1766663884393,0.02553428,87577.0,87565.0,0.00017132]
[1766663884589,0.02553428,87576.0,87565.0,0.00017132]
[1766663884796,0.0114253,87578.0,87565.0,0.00017132]
[1766663885003,0.02553428,87577.0,87565.0,0.00017132]
[1766663885203,0.02553428,87576.0,87565.0,0.00017132]
[1766663885402,0.0114253,87578.0,87565.0,0.00017132]
[1766663885702,0.02553892,87577.0,87565.0,0.00017132]
[1766663886002,0.02553892,87576.0,87565.0,0.00017132]
[1766663886201,0.02554402,87575.0,87565.0,0.00017132]
[1766663886404,0.0114253,87578.0,87565.0,0.00017132]
[1766663886603,0.02554402,87577.0,87565.0,0.00017132]
[1766663886803,0.02554402,87576.0,87565.0,0.00017132]
[1766663887104,0.02554402,87575.0,87565.0,0.00017132]
[1766663887296,0.0114253,87578.0,87565.0,0.00017132]
[1766663887500,0.02555016,87577.0,87565.0,0.00017132]
[1766663887800,0.02555016,87576.0,87565.0,0.00017132]
[1766663887994,0.02555016,87575.0,87565.0,0.00017132]
[1766663888194,0.02555307,87574.0,87565.0,0.00017132]
[1766663888391,0.0114253,87578.0,87565.0,0.00017132]
[1766663888592,0.02555307,87577.0,87565.0,0.00017132]
[1766663888799,0.02555307,87576.0,87565.0,0.00017132]
[1766663889002,0.02555307,87575.0,87565.0,0.00017132]
[1766663889199,0.02555307,87574.0,87565.0,0.00017132]
[1766663889389,0.0114255,87576.0,87565.0,0.00017132]
[1766663891106,0.0114259,87573.0,87565.0,1.32e-06]
[1766663891301,0.0114259,87573.0,87559.0,0.0686276]
[1766663892905,0.0114263,87570.0,87559.0,0.0572]
[1766663893106,0.0114263,87570.0,87554.0,0.0572]
[1766663893304,0.0114259,87573.0,87557.0,0.0114279]
[1766663894108,0.0114259,87573.0,87559.0,0.0114276]
[1766663894308,0.0114259,87573.0,87556.0,0.00017132]
[1766663895206,0.00017132,87574.0,87559.0,0.0114276]
[1766663896203,0.0114258,87573.0,87559.0,0.0114276]
[1766663896406,0.00017132,87574.0,87559.0,0.0114276]
[1766663897410,0.00017132,87574.0,87562.0,0.0114271]
[1766663901819,0.00017132,87574.0,87564.0,0.011427]
[1766663908423,0.00017132,87574.0,87556.0,0.06167479]
[1766663909223,0.00017132,87574.0,87562.0,0.0114273]
[1766663914726,0.00017132,87574.0,87556.0,0.00017132]
[1766663915226,0.00017132,87574.0,87564.0,0.011427]
[1766663916016,0.00017132,87574.0,87566.0,0.0114267]
[1766663918533,0.00017132,87574.0,87563.0,0.011427]
[1766663922643,0.00017132,87574.0,87560.0,0.0114275]
[1766663923441,0.00017132,87574.0,87557.0,0.0114279]
[1766663924338,0.0114259,87573.0,87557.0,0.0114279]
[1766663924741,0.0114259,87573.0,87557.0,0.07293137]
[1766663925342,0.0114262,87571.0,87557.0,0.06150347]
[1766663929041,0.01159712,87574.0,87558.0,0.0114278]
[1766663929232,0.0256303,87573.0,87558.0,0.0114278]
[1766663929432,0.0256303,87572.0,87558.0,0.0114278]
[1766663929632,0.0256303,87571.0,87556.0,0.00017132]
[1766663929832,3e-07,87570.0,87556.0,0.00017132]
[1766663930138,0.01159712,87574.0,87556.0,0.00017132]
[1766663931245,0.01159712,87574.0,87559.0,0.0114276]
[1766663932349,0.00017132,87574.0,87559.0,0.0114276]
[1766663933350,0.00017132,87574.0,87561.0,0.0114273]
[1766663940153,0.00017132,87574.0,87556.0,0.06167479]
[1766663941255,0.00017132,87574.0,87562.0,0.0114272]
[1766663943849,1.32e-06,87574.0,87562.0,0.0114272]
[1766663944055,0.0114252,87579.0,87562.0,0.0114272]
[1766663944258,0.02546482,87578.0,87562.0,0.0114272]
[1766663944553,0.02546482,87577.0,87562.0,0.0114272]
[1766663944754,0.02546482,87576.0,87562.0,0.0114272]
[1766663944957,0.02546482,87575.0,87562.0,0.0114272]
[1766663945149,0.00017132,87578.0,87562.0,0.0114272]
[1766663945350,0.0114255,87576.0,87562.0,0.0114272]
[1766663945551,0.02546567,87575.0,87562.0,0.0114272]
[1766663945750,0.0114255,87576.0,87562.0,0.0114272]
[1766663945951,0.02546567,87575.0,87562.0,0.0114272]
[1766663946153,0.0114255,87576.0,87562.0,0.0114272]
[1766663946358,0.04105931,87585.0,87556.0,0.06167479]
[1766663946660,0.04072,87584.0,87564.0,0.011427]
[1766663946848,0.03072,87584.0,87564.0,0.011427]
[1766663947552,0.00017132,87583.0,87564.0,0.011427]
[1766663948260,0.011425,87580.0,87564.0,0.011427]
[1766663950264,0.00017132,87583.0,87561.0,0.0114273]
[1766663951164,0.0114254,87577.0,87561.0,0.0114273]
[1766663952065,0.0114257,87575.0,87561.0,0.0114273]
[1766663955069,0.0114249,87581.0,87558.0,0.0114277]
[1766663955280,0.0114259,87573.0,87558.0,0.0114277]
[1766663955869,0.00017132,87583.0,87558.0,0.0114277]
[1766663956969,0.00017132,87583.0,87557.0,0.06150347]
[1766663956970,0.0114256,87576.0,87560.0,0.0114275]
[1766663958565,0.0114256,87576.0,87557.0,0.06150347]
[1766663958566,0.0114256,87576.0,87562.0,0.0114273]
[1766663959256,0.0114251,87579.0,87565.0,0.0114269]
[1766663959458,0.0114251,87579.0,87562.0,0.0114272]
[1766663961473,0.0114251,87579.0,87564.0,0.011427]
[1766663961673,0.0114251,87579.0,87561.0,0.0114273]
[1766663962074,0.00017132,87583.0,87561.0,0.0114273]
[1766663962276,0.0114254,87577.0,87559.0,0.06150347]
[1766663963173,0.0114254,87577.0,87560.0,0.0114275]
[1766663968484,0.0114254,87577.0,87562.0,0.0114273]
[1766663969288,0.02538546,87576.0,87562.0,0.0114273]
[1766663969589,0.02538546,87575.0,87562.0,0.0114273]
[1766663969793,0.0114254,87577.0,87559.0,0.0114276]
[1766663969987,0.02538546,87576.0,87559.0,0.0114276]
[1766663970189,0.02538546,87575.0,87559.0,0.0114276]
[1766663970387,0.0114254,87577.0,87559.0,0.0114276]
[1766663970581,0.02538556,87576.0,87561.0,0.0114274]
[1766663970889,0.02538556,87575.0,87561.0,0.0114274]
[1766663971094,0.0114254,87577.0,87561.0,0.0114274]
[1766663971289,0.02538602,87576.0,87561.0,0.0114274]
[1766663971583,0.03681162,87575.0,87560.0,0.0114275]
[1766663971778,0.02538602,87574.0,87560.0,0.0114275]
[1766663973881,0.0114253,87578.0,87560.0,0.0114275]
[1766663974081,0.02538715,87577.0,87560.0,0.0114275]
[1766663974281,0.02538715,87576.0,87562.0,0.0114272]
[1766663974589,0.02538715,87576.0,87556.0,0.00017132]
[1766663974590,0.02538715,87575.0,87564.0,0.011427]
[1766663974781,0.02538715,87574.0,87564.0,0.011427]
[1766663974981,0.0114249,87581.0,87564.0,0.011427]
[1766663975190,0.02538788,87580.0,87564.0,0.011427]
[1766663975391,0.02538788,87579.0,87564.0,0.011427]
[1766663975592,0.02538788,87578.0,87564.0,0.011427]
[1766663975888,0.02538788,87577.0,87564.0,0.011427]
[1766663976090,0.02538788,87576.0,87564.0,0.011427]
[1766663976290,0.02538788,87575.0,87564.0,0.011427]
[1766663976491,0.02538788,87574.0,87564.0,0.011427]
[1766663976692,0.0114249,87581.0,87564.0,0.011427]
[1766663976894,0.02538836,87580.0,87564.0,0.011427]
[1766663977094,0.02538836,87579.0,87564.0,0.011427]
[1766663977296,0.02538836,87578.0,87564.0,0.011427]
[1766663977488,0.02538836,87577.0,87564.0,0.011427]
[1766663977793,0.02538836,87576.0,87564.0,0.011427]
[1766663977984,0.02538836,87575.0,87564.0,0.011427]
[1766663978188,0.02538836,87574.0,87564.0,0.011427]
[1766663978386,0.0114249,87581.0,87564.0,0.011427]
[1766663978597,0.02538841,87580.0,87564.0,0.011427]
[1766663978894,0.02538841,87579.0,87564.0,0.011427]
[1766663979086,0.02538841,87578.0,87564.0,0.011427]
[1766663979286,0.02538841,87577.0,87564.0,0.011427]
[1766663979492,0.0114251,87579.0,87564.0,0.011427]
[1766663979694,0.02538836,87578.0,87564.0,0.011427]
[1766663979997,0.0114251,87579.0,87564.0,0.011427]
[1766663980185,0.02538833,87578.0,87564.0,0.011427]
[1766663980386,0.0114251,87579.0,87564.0,0.011427]
[1766663980595,0.02538833,87578.0,87564.0,0.011427]
[1766663980896,0.0114251,87579.0,87564.0,0.011427]
[1766663981085,0.02538841,87578.0,87564.0,0.011427]
[1766663981286,0.0114251,87579.0,87564.0,0.011427]
[1766663981487,0.0114253,87577.0,87561.0,0.0114273]
[1766663982390,0.0114253,87577.0,87563.0,0.0114271]
[1766663983194,0.011425,87580.0,87563.0,0.0114271]
[1766663983396,0.02538809,87579.0,87563.0,0.0114271]
[1766663983594,0.02538809,87578.0,87563.0,0.0114271]
[1766663983896,0.011425,87580.0,87563.0,0.0114271]
[1766663984094,0.02538809,87579.0,87563.0,0.0114271]
[1766663984295,0.03681329,87578.0,87563.0,0.0114271]
[1766663984496,0.0114252,87578.0,87563.0,0.0114271]
[1766663987496,0.0114252,87578.0,87560.0,0.0114274]
[1766663988297,0.00017132,87583.0,87560.0,0.0114274]
[1766663988500,0.0253885,87582.0,87560.0,0.0114274]
[1766663988702,0.0253885,87581.0,87560.0,0.0114274]
[1766663988889,0.0253885,87580.0,87560.0,0.0114274]
[1766663989091,0.0253885,87579.0,87560.0,0.0114274]
[1766663989392,0.0114254,87577.0,87560.0,0.0114274]
[1766663991699,0.0114257,87575.0,87560.0,0.0114274]
[1766663996702,0.0114257,87575.0,87558.0,0.06150347]
[1766663999105,0.0114257,87575.0,87559.0,0.06150347]
[1766664000411,0.011426,87573.0,87559.0,0.06150347]
[1766664000601,0.011426,87573.0,87558.0,0.06150347]
[1766664002210,0.0114256,87576.0,87559.0,0.0114277]
[1766664002410,0.0114258,87574.0,87558.0,0.06150347]
[1766664002614,0.00017132,87583.0,87558.0,0.06150347]
[1766664002816,0.0114254,87577.0,87558.0,0.06150347]
[1766664003113,0.0114254,87577.0,87560.0,0.0114275]
[1766664003617,0.0114261,87571.0,87559.0,0.06150347]
[1766664003917,0.0114249,87581.0,87558.0,7e-08]
[1766664004103,0.0114251,87579.0,87556.0,2e-08]
[1766664004302,0.0114275,87561.0,87556.0,2e-08]
[1766664004902,0.011427,87564.0,87554.0,0.0572]
[1766664005314,0.0114274,87562.0,87554.0,0.0572]
[1766664006204,0.0114276,87560.0,87554.0,0.0572]
[1766664007710,0.0114276,87560.0,87549.0,0.00017132]
[1766664007914,0.01159852,87563.0,87544.0,0.0114295]
[1766664008217,0.00017132,87563.0,87545.0,0.0114294]
[1766664009008,0.00017132,87563.0,87545.0,0.01160072]
[1766664009216,0.01159852,87563.0,87545.0,0.01160072]
[1766664011818,0.00017132,87563.0,87545.0,0.00017132]
[1766664012610,0.00017132,87563.0,87549.0,0.0114289]
[1766664015421,0.00017132,87563.0,87551.0,0.0114286]
[1766664017725,0.00017132,87563.0,87555.0,0.0114281]
[1766664020823,1.32e-06,87563.0,87552.0,0.0114285]
[1766664022224,1.32e-06,87563.0,87554.0,0.0114283]
[1766664022426,1.32e-06,87563.0,87551.0,0.0114286]
[1766664022623,1.32e-06,87563.0,87545.0,0.00017132]
[1766664022817,1.32e-06,87563.0,87546.0,0.0114293]
[1766664023219,1.32e-06,87563.0,87556.0,0.011428]
[1766664023723,1.32e-06,87563.0,87558.0,0.0114278]
[1766664024116,1.32e-06,87563.0,87555.0,0.0114281]
[1766664024923,1.32e-06,87563.0,87557.0,0.0114279]
[1766664027326,1.32e-06,87563.0,87559.0,0.0114276]
[1766664028124,1.32e-06,87563.0,87558.0,0.0114277]
[1766664028327,1.32e-06,87563.0,87560.0,0.0114275]
[1766664036635,0.0114245,87584.0,87568.0,0.0114264]
[1766664036835,0.0114245,87584.0,87568.0,0.0686264]
[1766664037035,0.00962737,87592.0,87568.0,0.0572]
[1766664037226,0.00962737,87592.0,87576.0,0.0114254]
[1766664037227,0.02576867,87591.0,87576.0,0.0114254]
[1766664037534,0.02576867,87590.0,87578.0,0.0114251]
[1766664037737,0.00979869,87592.0,87578.0,0.0114251]
[1766664040640,0.0114235,87591.0,87576.0,0.0114254]
[1766664042035,0.00979869,87592.0,87575.0,0.00017132]
[1766664042036,0.0114238,87589.0,87575.0,0.00017132]
[1766664042244,0.0114238,87589.0,87575.0,0.03017132]
[1766664044244,0.0114241,87587.0,87575.0,0.03017132]
[1766664045750,0.0114244,87585.0,87575.0,0.03017132]
[1766664046452,0.00979869,87592.0,87575.0,0.03017132]
[1766664047167,0.011425,87580.0,87575.0,0.03017132]
[1766664047668,0.011425,87580.0,87575.0,2e-08]
[1766664047858,0.0114253,87578.0,87575.0,2e-08]
[1766664048056,0.0114253,87578.0,87575.0,0.01]
[1766664048257,0.0114253,87578.0,87568.0,0.0572]
[1766664048454,0.0114253,87578.0,87568.0,0.0872]
[1766664049068,0.0114249,87581.0,87568.0,0.0872]
[1766664050170,0.0114253,87578.0,87568.0,0.0872]
[1766664061670,0.04105931,87589.0,87568.0,0.0872]
[1766664061872,0.02574076,87588.0,87568.0,0.0872]
[1766664062077,0.011425,87580.0,87568.0,0.0872]
[1766664062372,0.02574076,87579.0,87568.0,0.0872]
[1766664062577,0.0114246,87583.0,87568.0,0.0872]
[1766664062775,0.02574247,87582.0,87568.0,0.0872]
[1766664062967,0.02574247,87581.0,87568.0,0.0872]
[1766664063169,0.02574247,87580.0,87568.0,0.0872]
[1766664063371,0.02574247,87579.0,87568.0,0.0872]
[1766664063668,0.0114248,87581.0,87568.0,0.0872]
[1766664063979,0.02574426,87580.0,87568.0,0.0872]
[1766664064182,0.0114244,87585.0,87568.0,0.0872]
[1766664064372,0.0114244,87585.0,87570.0,0.0114262]
[1766664064570,0.011424,87588.0,87572.0,0.011426]
[1766664065482,0.04105931,87590.0,87577.0,0.0114253]
[1766664065692,0.04105931,87591.0,87577.0,0.0114253]
[1766664066070,0.04105931,87590.0,87574.0,0.0114256]
[1766664066480,0.04105931,87591.0,87574.0,0.0114256]
[1766664066879,0.05248291,87591.0,87574.0,0.0114256]
[1766664068880,0.05248291,87591.0,87574.0,0.0104256]
[1766664069384,0.0114236,87591.0,87574.0,0.0104256]
[1766664071570,0.00729132,87592.0,87576.0,0.0114254]
[1766664071875,0.00729132,87592.0,87580.0,0.0114249]
[1766664073190,0.05716,87591.0,87580.0,0.0114249]
[1766664073681,0.05716,87591.0,87567.0,0.05404]
[1766664073882,0.05716,87591.0,87582.0,0.0114246]
[1766664074273,0.05716,87591.0,87579.0,0.011425]
[1766664074476,0.00017132,87592.0,87579.0,0.011425]
[1766664074673,0.00017132,87592.0,87582.0,0.0114246]
[1766664074674,0.05733132,87592.0,87582.0,0.0114246]
[1766664077288,0.05733132,87592.0,87579.0,0.011425]
[1766664078488,0.00017132,87592.0,87579.0,0.011425]
[1766664079378,0.0114235,87591.0,87577.0,0.00017132]
[1766664079579,0.0114235,87591.0,87577.0,0.03017132]
[1766664083883,0.00017132,87592.0,87578.0,0.0114252]
[1766664087492,0.00017132,87592.0,87578.0,0.0414252]
[1766664096803,0.0114232,87594.0,87578.0,0.0414252]
[1766664097800,0.0114232,87594.0,87580.0,0.0114249]
[1766664098004,0.03976,87596.0,87580.0,0.0114249]
[1766664099205,0.011423,87595.0,87580.0,0.0114249]
[1766664100294,0.03976,87596.0,87580.0,0.0114249]
[1766664100497,0.00017132,87597.0,87580.0,0.0114249]
[1766664100701,0.04664,87602.0,87580.0,0.0114249]
[1766664101002,0.0114231,87594.0,87580.0,0.0114249]
[1766664101895,0.0114228,87597.0,87582.0,0.0114247]
[1766664102302,0.02589462,87596.0,87582.0,0.0114247]
[1766664102608,0.04664,87602.0,87585.0,0.0114242]
[1766664102790,0.0114206,87614.0,87585.0,0.0114242]
[1766664102791,0.02589387,87601.0,87585.0,0.0114242]
[1766664103104,0.03731617,87600.0,87585.0,0.0114242]
[1766664103296,0.0114226,87598.0,87584.0,0.0114243]
[1766664103604,0.0114225,87599.0,87584.0,0.0114243]
[1766664103906,0.02589394,87598.0,87584.0,0.0114243]
[1766664104094,0.0114225,87599.0,87584.0,0.0114243]
[1766664104296,0.02589411,87598.0,87584.0,0.0114243]
[1766664104594,0.0114225,87599.0,87584.0,0.0114243]
[1766664104795,0.02589427,87598.0,87584.0,0.0114243]
[1766664104995,0.0114225,87599.0,87584.0,0.0114243]
[1766664105195,0.02589427,87598.0,87584.0,0.0114243]
[1766664105393,0.0114225,87599.0,87584.0,0.0114243]
[1766664105594,0.02589339,87598.0,87584.0,0.0114243]
[1766664105791,0.0114225,87599.0,87584.0,0.0114243]
[1766664106098,0.02589339,87598.0,87584.0,0.0114243]
[1766664106297,0.0114225,87599.0,87584.0,0.0114243]
[1766664106503,0.02589234,87598.0,87584.0,0.0114243]
[1766664106805,0.0114225,87599.0,87584.0,0.0114243]
[1766664106995,0.02589234,87598.0,87584.0,0.0414243]
[1766664107196,0.0114225,87599.0,87584.0,0.0414243]
[1766664107398,0.02589229,87598.0,87584.0,0.0414243]
[1766664107602,0.0114225,87599.0,87584.0,0.0414243]
[1766664107802,0.02589149,87598.0,87584.0,0.0414243]
[1766664108104,0.0114225,87599.0,87584.0,0.0414243]
[1766664108299,0.02589149,87598.0,87584.0,0.0414243]
[1766664108494,0.0114225,87599.0,87584.0,0.0414243]
[1766664108694,0.02589079,87598.0,87584.0,0.0414243]
[1766664108894,0.0114225,87599.0,87584.0,0.0414243]
[1766664109103,0.02589079,87598.0,87584.0,0.0414243]
[1766664109304,0.0114225,87599.0,87584.0,0.0414243]
[1766664109507,0.02589021,87598.0,87587.0,0.011424]
[1766664109703,0.01159342,87602.0,87587.0,0.03]
[1766664109704,0.00017132,87602.0,87587.0,0.03]
[1766664109904,0.00017132,87602.0,87590.0,0.0114236]
[1766664111309,0.00017132,87602.0,87587.0,0.0114239]
[1766664111607,0.00017132,87602.0,87587.0,0.0414239]
[1766664114707,0.00017132,87602.0,87587.0,0.3614239]
[1766664118704,0.00017132,87602.0,87589.0,0.0114237]
[1766664121605,0.0114222,87601.0,87587.0,0.37716]
[1766664121800,0.0114225,87599.0,87587.0,0.40716]
[1766664123114,0.00017132,87602.0,87587.0,0.40716]
[1766664123608,0.00017132,87602.0,87587.0,0.08716]
[1766664123810,0.0114239,87588.0,87585.0,0.05716]
[1766664124013,0.0114239,87588.0,87580.0,0.05716]
[1766664124207,0.0114239,87588.0,87580.0,0.08716]
[1766664124399,0.0114236,87591.0,87580.0,0.08716]
[1766664125416,0.0114238,87589.0,87580.0,0.08716]
[1766664127816,0.0114223,87600.0,87580.0,0.08716]
[1766664128018,0.00017132,87602.0,87580.0,0.08716]
[1766664128220,0.0114233,87593.0,87580.0,0.08716]
[1766664129920,0.0114229,87596.0,87580.0,0.08716]
[1766664133720,0.0114232,87594.0,87580.0,0.08716]
[1766664136127,0.0114228,87597.0,87580.0,0.08716]
[1766664137127,0.0114231,87595.0,87580.0,0.08716]
[1766664140710,0.0114233,87593.0,87580.0,0.08716]